[Event "ENG-ch Women 2019"]
[Site "Hull"]
[Date "2019.08.30"]
[Round "1.2"]
[White "Longson, Sarah N"]
[Black "Sengenberger, Sara"]
[Result "1-0"]
[ECO "B34"]
[WhiteElo "2095"]
[BlackElo "1570"]
[Annotator "NA RC"]
[PlyCount "95"]
[EventDate "2019.08.30"]
[EventType "swiss"]
[EventCountry "ENG"]
[SourceTitle "playchess.com"]
[Source "ChessBase"]
[SourceQuality "1"]
[TimeControl "5400+30"]

1. e4 {[%emt 0:00:00]} c5 {[%emt 0:00:00]} 2. Nf3 {[%emt 0:00:00]} g6 {[%emt 0:00:00]} 3. d4 {[%emt 0:00:00]} cxd4 {[%emt 0:00:00]} 4. Nxd4 {[%emt 0:00:00]} Nc6 {[%emt 0:00:15]} 5. Be3 {[%emt 0:00:47]} Bg7 {[%emt 0:01:12]} 6. Nc3 {[%emt 0:00:46]} Nf6 {[%emt 0:01:33]} 7. f3 {[%emt 0:01:31]} O-O {[%emt 0:01:32]} 8. Qd2 {[%emt 0:05:06]} a6 {[%emt 0:04:23]} 9. O-O-O {[%emt 0:01:18] B34: Sicilian: Accelerated Dragon with 5 Nc3: sidelines} (9. Bc4 b5 10. Bb3 Na5 11. O-O-O Nxb3+ 12. cxb3 Bb7 13. Kb1 Rc8 14. h4 h5 15. Bg5 d6 16. g4 hxg4 17. Bxf6 exf6 18. fxg4 {1-0 (43) Haftmann,R (1718)-Eckert,M (1558) Hofheim 2019}) 9... Qa5 {[%emt 0:04:09]} 10. Nb3 {[%emt 0:01:32]} Qc7 {[%emt 0:01:54]} 11. g4 {[%emt 0:08:24]} Rd8 {[%emt 0:03:50]} 12. g5 $146 {[%emt 0:02:29]} ({Predecessor:} 12. Be2 e5 13. h4 b5 14. h5 d6 15. hxg6 fxg6 {0-1 (53) Slawtschew,S-Fey,F Sebnitz 1998}) 12... Nh5 {[%emt 0:05:39]} 13. f4 {[%emt 0:07:24]} Bxc3 {[%emt 0:05:18]} 14. Qxc3 {[%emt 0:11:32]} Nxf4 {[%emt 0:05:48]} 15. Qd2 {[%emt 0:01:05]} e5 {[%emt 0:05:18]} 16. Bxf4 {[%emt 0:02:26]} exf4 {[%emt 0:01:33]} 17. h4 {[%emt 0:02:37]} d6 {[%emt 0:12:38]} 18. h5 {[%emt 0:17:36]} Ne5 {[%emt 0:11:06]} 19. Qxf4 {[%emt 0:03:37]} Qe7 {[%emt 0:03:28]} 20. Be2 {[%emt 0:01:52]} Rf8 {[%emt 0:02:56]} 21. Qh4 {[%emt 0:04:22]} Be6 {[%emt 0:04:20]} 22. hxg6 {[%emt 0:01:15]} (22. Nd4 $16 Bc4 23. Bxc4 Nxc4 24. Rdf1) 22... fxg6 {[%emt 0:01:32]} 23. Rxd6 {[%emt 0:01:12]} Rf7 $1 {[%emt 0:02:09]} 24. Rdd1 {[%emt 0:02:50]} Rd8 {[%emt 0:02:27]} 25. Kb1 {[%emt 0:01:32]} Bc4 {[%emt 0:01:11]} 26. Bxc4 {[%emt 0:03:22]} Nxc4 {[%emt 0:00:51]} 27. Rd3 {[%emt 0:03:05]} Ne5 {[%emt 0:01:21]} 28. Rxd8+ {[%emt 0:04:27]} Qxd8 {[%emt 0:00:06]} 29. Qg3 {[%emt 0:00:46]} Nf3 {[%emt 0:01:09]} 30. Nc5 {[%emt 0:02:42]} Qxg5 $2 {[%emt 0:01:17]} (30... Qc7 $15 {stays ahead.} 31. Qxc7 Rxc7) 31. Qb8+ {[%emt 0:00:39] Double Attack} Rf8 {[%emt 0:00:22]} 32. Qxf8+ {[%emt 0:02:32]} Kxf8 {[%emt 0:00:14]} 33. Ne6+ {[%emt 0:00:02]} Kf7 {[%emt 0:00:28]} 34. Nxg5+ {[%emt 0:00:01]} Nxg5 {[%emt 0:00:12]} 35. c4 {[%emt 0:00:27]} h5 {[%emt 0:00:16]} 36. Rh4 {[%emt 0:00:34]} Ke6 {[%emt 0:00:21]} 37. Kc2 {[%emt 0:00:41]} Ke5 {[%emt 0:00:44]} 38. Kd3 {[%emt 0:00:55]} Nf3 {[%emt 0:01:33]} 39. Rh3 {[%emt 0:01:25]} Kf4 $2 {[%emt 0:00:16] [#]} (39... Ng5 40. Rh1 Nf7) 40. Rxf3+ $1 {[%emt 0:00:39]} Kxf3 {[%emt 0:00:04]} 41. e5 {[%emt 0:00:02]} g5 {[%emt 0:01:53]} 42. e6 {[%emt 0:00:06]} g4 {[%emt 0:00:30]} 43. e7 {[%emt 0:00:05]} g3 {[%emt 0:00:28]} 44. e8=Q {[%emt 0:00:11]} g2 {[%emt 0:00:20]} 45. Qxh5+ {[%emt 0:00:15]} Kf2 {[%emt 0:00:46]} 46. Qe2+ {[%emt 0:01:32]} Kg3 {[%emt 0:00:35]} 47. Qe1+ {[%emt 0:00:37]} Kh3 {[%emt 0:00:26]} 48. Qg1 {[%emt 0:00:11]} 1-0

[Event "ENG-ch Women 2019"]
[Site "Hull"]
[Date "2019.08.30"]
[Round "1.3"]
[White "Maladkar, Ritika"]
[Black "Head, Louise"]
[Result "0-1"]
[ECO "A21"]
[WhiteElo "1561"]
[BlackElo "2092"]
[Annotator "NA RC"]
[PlyCount "82"]
[EventDate "2019.08.30"]
[EventType "swiss"]
[EventCountry "ENG"]
[SourceTitle "playchess.com"]
[Source "ChessBase"]
[SourceQuality "1"]
[TimeControl "5400+30"]

1. c4 {[%emt 0:00:00]} e5 {[%emt 0:00:00]} 2. Nc3 {[%emt 0:00:00]} Bb4 {[%emt 0:00:48]} 3. Nd5 {[%emt 0:02:38]} Be7 {[%emt 0:01:40]} 4. g3 {[%emt 0:01:49]} Nf6 {[%emt 0:00:40]} (4... c6 5. Nxe7 Qxe7 6. Bg2 Nf6 7. d3 h6 8. Nf3 O-O 9. O-O d5 10. cxd5 cxd5 11. a3 Nc6 12. b4 {1-0 (60) Feller,S (2626)-Arun Prasad,S (2502) Nancy 2015}) 5. Bg2 {[%emt 0:03:43]} O-O {[%emt 0:06:16]} 6. e3 {[%emt 0:03:28] A21: English Opening: 1...e5 2 Nc3} Nxd5 {[%emt 0:01:39]} 7. cxd5 {[%emt 0:01:26]} c6 $146 {[%emt 0:08:49]} ({Predecessor:} 7... d6 8. Ne2 f5 9. f4 Nd7 10. d3 Nf6 11. O-O Bd7 12. Qb3 {1-0 (47) Pfatteicher,L (2120)-Becker,A (2102) Baden 2014}) 8. Ne2 {[%emt 0:02:08]} cxd5 {[%emt 0:04:28]} 9. Bxd5 {[%emt 0:01:27]} Nc6 {[%emt 0:00:18]} 10. a3 {[%emt 0:01:48]} d6 {[%emt 0:08:06]} 11. O-O {[%emt 0:02:55]} Bh3 {[%emt 0:06:10]} 12. Re1 {[%emt 0:01:48]} Be6 {[%emt 0:01:34]} 13. Nc3 {[%emt 0:07:32]} Qd7 {[%emt 0:02:34]} 14. b4 {[%emt 0:06:24]} Bf6 {[%emt 0:01:12]} 15. Bb2 {[%emt 0:02:08]} g6 {[%emt 0:06:37]} 16. f4 {[%emt 0:09:53]} exf4 {[%emt 0:03:22]} 17. Bxe6 {[%emt 0:11:24]} fxe6 {[%emt 0:01:36]} 18. exf4 {[%emt 0:02:36]} Bd4+ {[%emt 0:01:47]} 19. Kg2 {[%emt 0:04:01]} e5 {[%emt 0:02:55]} 20. Rf1 {[%emt 0:10:41]} Qe6 {[%emt 0:05:55]} 21. Rb1 {[%emt 0:08:36]} exf4 {[%emt 0:07:40]} 22. gxf4 {[%emt 0:01:46]} Rf5 {[%emt 0:04:03]} 23. Qe2 {[%emt 0:05:12]} Qf7 {[%emt 0:04:19]} 24. Rbe1 {[%emt 0:05:40]} Rxf4 {[%emt 0:06:07]} 25. Rxf4 {[%emt 0:02:34]} Qxf4 {[%emt 0:00:07]} 26. Rf1 {[%emt 0:00:33]} Qe5 {[%emt 0:00:19]} 27. Qxe5 {[%emt 0:00:38]} Nxe5 {[%emt 0:00:46]} 28. Bc1 {[%emt 0:00:35]} Bxc3 {[%emt 0:01:08]} 29. dxc3 {[%emt 0:00:10]} Rc8 {[%emt 0:00:03]} 30. Bb2 {[%emt 0:00:43]} (30. Bh6 $17) 30... Nc4 {[%emt 0:00:09]} 31. Bc1 {[%emt 0:00:20]} Re8 {[%emt 0:01:28]} 32. Kf3 {[%emt 0:00:44] [#]} (32. a4 $17) 32... Rf8+ $1 {[%emt 0:02:10]} 33. Ke2 {[%emt 0:00:11]} Rxf1 {[%emt 0:00:02]} 34. Kxf1 {[%emt 0:00:16]} Kf7 {[%emt 0:00:10]} 35. Ke2 {[%emt 0:00:11]} Ke6 {[%emt 0:00:08]} 36. Kf3 {[%emt 0:00:34]} Kf5 {[%emt 0:01:01]} 37. a4 {[%emt 0:00:57]} a5 {[%emt 0:00:29]} 38. bxa5 {[%emt 0:00:24]} Nxa5 {[%emt 0:00:07]} 39. Bf4 {[%emt 0:00:20]} Nc4 {[%emt 0:00:30]} 40. h4 {[%emt 0:00:30]} Ke6 {[%emt 0:02:27]} 41. Ke4 $19 {[%emt 0:00:53]} Nb6 {[%emt 0:00:23]} 0-1

[Event "ENG-ch Women 2019"]
[Site "Hull"]
[Date "2019.08.30"]
[Round "1.4"]
[White "Bhatia, Kanwal K"]
[Black "Bridgeman, Niamh"]
[Result "1-0"]
[ECO "C07"]
[WhiteElo "2044"]
[BlackElo "1511"]
[Annotator "NA RC"]
[PlyCount "71"]
[EventDate "2019.08.30"]
[EventType "swiss"]
[EventCountry "ENG"]
[SourceTitle "playchess.com"]
[Source "ChessBase"]
[SourceQuality "1"]
[TimeControl "5400+30"]

1. e4 {[%emt 0:00:00]} e6 {[%emt 0:00:00]} 2. d4 {[%emt 0:00:00]} d5 {[%emt 0:00:00]} 3. Nd2 {[%emt 0:00:00]} c5 {[%emt 0:00:01]} 4. exd5 {[%emt 0:01:06]} Qxd5 {[%emt 0:00:19]} 5. Ngf3 {[%emt 0:00:14]} cxd4 {[%emt 0:00:20]} 6. Nb3 {[%emt 0:01:23] C07: French Tarrasch: 3...c5, 4 Ngf3 and 4 exd5 Qxd5} (6. Bc4 Qd6 7. O-O Nf6 8. Nb3 Nc6 9. Nbxd4 Nxd4 10. Nxd4 a6 11. Re1 Qc7 12. Bf1 Be7 13. Qf3 O-O 14. Bf4 Bd6 15. Bxd6 Qxd6 16. Rad1 Qc7 17. c4 Rb8 18. Qg3 Qxg3 19. hxg3 Bd7 {½-½ (61) Karjakin,S (2773)-Duda,J (2737) chess.com INT 2018}) 6... Nc6 {[%emt 0:02:12]} 7. Nbxd4 {[%emt 0:06:41]} Nxd4 {[%emt 0:00:25]} 8. Qxd4 {[%emt 0:00:13]} Qxd4 {[%emt 0:00:36]} 9. Nxd4 {[%emt 0:00:05]} Bd7 {[%emt 0:02:01]} 10. Bf4 {[%emt 0:02:25]} Nf6 $146 {[%emt 0:05:30]} ({Predecessor:} 10... a6 11. Bd3 Nf6 12. O-O Rc8 13. c3 Bc5 {½-½ (43) Montero Gonzalez,P-Ortiz Dosal,A Mexico 2001}) 11. Nb5 {[%emt 0:05:41]} Nd5 {[%emt 0:02:17]} 12. Nd6+ {[%emt 0:03:50]} Bxd6 {[%emt 0:02:43]} 13. Bxd6 {[%emt 0:00:06]} Rc8 {[%emt 0:01:19]} 14. O-O-O {[%emt 0:02:52]} f6 {[%emt 0:03:57]} 15. Be2 {[%emt 0:03:54]} Kf7 {[%emt 0:11:21]} 16. Rhe1 {[%emt 0:01:09]} Rhd8 {[%emt 0:10:01]} 17. Bg3 {[%emt 0:02:01]} Ba4 {[%emt 0:07:53]} 18. b3 {[%emt 0:01:34]} Bd7 {[%emt 0:03:53]} 19. Bc4 {[%emt 0:09:10]} Bc6 {[%emt 0:02:15]} 20. Kb2 {[%emt 0:02:18]} b5 {[%emt 0:04:23]} 21. Be2 {[%emt 0:03:41]} Ne7 {[%emt 0:08:02]} 22. f3 {[%emt 0:02:26]} Rxd1 {[%emt 0:04:54]} 23. Rxd1 {[%emt 0:00:35]} Nf5 {[%emt 0:02:44]} 24. Bf2 {[%emt 0:01:36]} Rc7 {[%emt 0:03:11]} 25. c4 {[%emt 0:21:08]} a6 {[%emt 0:02:11]} 26. Kc3 {[%emt 0:07:47]} Rd7 {[%emt 0:02:42] [#]} 27. Rxd7+ $1 {[%emt 0:01:59]} Bxd7 {[%emt 0:00:08]} 28. cxb5 {[%emt 0:00:22]} axb5 {[%emt 0:01:03]} 29. Bc5 {[%emt 0:00:54]} Ke8 {[%emt 0:01:01]} (29... e5 $142 30. Kb4 Nd4) 30. Kb4 {[%emt 0:00:13]} Kd8 {[%emt 0:01:44]} 31. Bxb5 {[%emt 0:03:03]} Bxb5 {[%emt 0:00:53]} 32. Kxb5 {[%emt 0:00:06]} Nh4 {[%emt 0:00:44]} 33. Kc6 {[%emt 0:00:30]} Kc8 {[%emt 0:00:34]} 34. b4 {[%emt 0:00:12]} Nxg2 {[%emt 0:00:42]} 35. b5 {[%emt 0:00:08]} Nf4 {[%emt 0:00:48]} 36. b6 {[%emt 0:00:12]} 1-0

[Event "ENG-ch Women 2019"]
[Site "Hull"]
[Date "2019.08.30"]
[Round "1.5"]
[White "Headlong, Georgia"]
[Black "Varney, Zoe"]
[Result "0-1"]
[ECO "C66"]
[WhiteElo "1482"]
[BlackElo "1975"]
[Annotator "NA RC"]
[PlyCount "86"]
[EventDate "2019.08.30"]
[EventType "swiss"]
[EventCountry "ENG"]
[SourceTitle "playchess.com"]
[Source "ChessBase"]
[SourceQuality "1"]
[TimeControl "5400+30"]

1. e4 {[%emt 0:00:00]} e5 {[%emt 0:00:00]} 2. Nf3 {[%emt 0:00:00]} Nc6 {[%emt 0:00:00]} 3. Nc3 {[%emt 0:00:01]} Nf6 {[%emt 0:00:00]} 4. Bb5 {[%emt 0:00:08]} d6 {[%emt 0:02:33]} 5. d4 {[%emt 0:00:26]} exd4 {[%emt 0:01:52]} 6. Nxd4 {[%emt 0:00:17]} Bd7 {[%emt 0:00:14]} 7. Bxc6 {[%emt 0:00:41]} bxc6 {[%emt 0:00:33]} 8. O-O {[%emt 0:01:10]} Be7 {[%emt 0:00:43]} 9. Re1 {[%emt 0:01:34]} O-O {[%emt 0:03:30]} 10. Bg5 {[%emt 0:05:07]} h6 {[%emt 0:05:45]} 11. Bh4 {[%emt 0:01:09]} Qb8 $146 {[%emt 0:08:48] C66: Ruy Lopez: Steinitz Defence} ({Predecessor:} 11... Re8 12. Qd3 g5 13. Bg3 Nh5 14. e5 Bf8 15. Rad1 Nxg3 16. hxg3 Bg7 17. f4 dxe5 18. Nf3 Bg4 19. Qxd8 Raxd8 20. Rxd8 Rxd8 21. Nxe5 {½-½ (40) Labonte,R (2460)-Miettinen,K (2339) ICCF email 2013}) 12. Rb1 {[%emt 0:05:17]} Re8 {[%emt 0:04:56]} 13. e5 {[%emt 0:10:57]} Nd5 {[%emt 0:06:10]} 14. Bxe7 {[%emt 0:01:14]} Nxe7 {[%emt 0:00:53]} 15. e6 {[%emt 0:03:48]} fxe6 {[%emt 0:00:27]} 16. Nxe6 {[%emt 0:00:31]} Nf5 {[%emt 0:01:42]} 17. Nf4 {[%emt 0:03:30]} Qb4 {[%emt 0:01:29]} 18. Nd3 {[%emt 0:02:39]} Qh4 {[%emt 0:02:14]} 19. Qd2 {[%emt 0:07:18]} Nd4 {[%emt 0:11:47]} 20. Ne2 {[%emt 0:03:05]} Bf5 {[%emt 0:06:49]} 21. c3 {[%emt 0:03:36]} (21. Ng3 $11 {keeps the balance.}) 21... Nxe2+ {[%emt 0:03:58]} 22. Rxe2 {[%emt 0:00:23]} Qc4 {[%emt 0:01:52]} 23. Rxe8+ {[%emt 0:06:03]} Rxe8 {[%emt 0:00:06]} 24. Re1 {[%emt 0:00:16]} Rxe1+ {[%emt 0:01:57]} 25. Nxe1 {[%emt 0:00:10]} Qxa2 {[%emt 0:00:20]} 26. h3 {[%emt 0:02:55]} a5 {[%emt 0:02:42]} 27. Nf3 {[%emt 0:01:19]} Be4 {[%emt 0:02:07]} 28. Qe2 {[%emt 0:08:20]} Qd5 {[%emt 0:09:06]} 29. c4 {[%emt 0:05:11]} (29. Ne1 $17 {was called for.}) 29... Qf5 {[%emt 0:02:21]} 30. Nd4 {[%emt 0:05:52] [#]} Qg6 $1 {[%emt 0:05:01]} 31. f3 {[%emt 0:02:02]} Bd3 {[%emt 0:01:14]} (31... c5 $17 32. Nb5 Bd3) 32. Qd2 {[%emt 0:02:45]} Bxc4 {[%emt 0:01:31]} 33. Nxc6 {[%emt 0:01:12]} Qb1+ {[%emt 0:00:08]} 34. Kh2 {[%emt 0:00:35] [#]} a4 $1 {[%emt 0:00:12]} 35. Qd4 {[%emt 0:02:26]} Qc2 {[%emt 0:01:58]} 36. Kg3 {[%emt 0:06:47]} Bf1 {[%emt 0:03:16]} 37. Qf2 {[%emt 0:01:34]} Qxc6 {[%emt 0:05:12]} 38. Qxf1 {[%emt 0:00:20]} Qc2 {[%emt 0:01:02]} 39. Qb5 {[%emt 0:00:28]} Kh7 {[%emt 0:00:11]} 40. f4 {[%emt 0:01:11]} Qb3+ {[%emt 0:00:28]} 41. Qxb3 {[%emt 0:00:06]} axb3 {[%emt 0:00:04]} 42. f5 {[%emt 0:00:35]} c5 {[%emt 0:00:17]} 43. Kf4 {[%emt 0:00:12]} c4 {[%emt 0:00:06]} 0-1

[Event "ENG-ch Women 2019"]
[Site "Hull"]
[Date "2019.08.30"]
[Round "1.6"]
[White "Jaufarally, Nadia"]
[Black "Boztas, Lana"]
[Result "1-0"]
[ECO "B54"]
[WhiteElo "1934"]
[BlackElo "1475"]
[Annotator "NA RC"]
[PlyCount "87"]
[EventDate "2019.08.30"]
[EventType "swiss"]
[EventCountry "ENG"]
[SourceTitle "playchess.com"]
[Source "ChessBase"]
[SourceQuality "1"]
[TimeControl "5400+30"]

1. e4 {[%emt 0:00:00]} c5 {[%emt 0:00:00]} 2. Nf3 {[%emt 0:00:00]} Nc6 {[%emt 0:00:22]} 3. d4 {[%emt 0:00:00]} cxd4 {[%emt 0:00:12]} 4. Nxd4 {[%emt 0:00:00]} a6 {[%emt 0:02:19]} 5. Nc3 {[%emt 0:03:05]} d6 {[%emt 0:02:22]} 6. Be3 {[%emt 0:04:04]} Qa5 {[%emt 0:03:04] B54: Sicilian: 2...d6 3 d4 cxd4 4 Nxd4, Unusual Lines} 7. Qd2 {[%emt 0:03:36]} Nf6 {[%emt 0:01:40]} 8. f3 {[%emt 0:03:01]} Bd7 {[%emt 0:00:59]} 9. Bc4 {[%emt 0:04:20]} e6 {[%emt 0:04:38]} 10. O-O $146 {[%emt 0:08:15]} ({Predecessor:} 10. Bb3 Be7 11. g4 h6 12. h4 b5 13. O-O-O O-O-O 14. Qf2 Kb7 15. g5 hxg5 16. hxg5 Nxd4 17. Bxd4 {1-0 (47) Palac,M (2573)-Verat,L (2316) Paris 2000}) 10... Rc8 {[%emt 0:01:24]} 11. Bb3 {[%emt 0:00:36]} Ne5 {[%emt 0:01:37]} 12. Rad1 {[%emt 0:08:06]} Nc4 {[%emt 0:00:40]} 13. Bxc4 {[%emt 0:00:06]} Rxc4 {[%emt 0:00:13]} 14. Nb3 {[%emt 0:15:25]} Qc7 {[%emt 0:01:15]} 15. Bf4 {[%emt 0:02:30]} e5 {[%emt 0:02:11]} 16. Bg5 {[%emt 0:00:38]} Rc6 {[%emt 0:03:30]} 17. Bxf6 {[%emt 0:02:11]} gxf6 {[%emt 0:00:07]} 18. Nd5 {[%emt 0:00:09]} Qd8 {[%emt 0:00:28]} 19. Na5 {[%emt 0:00:42]} Be6 {[%emt 0:03:23]} 20. Nxc6 {[%emt 0:09:01]} bxc6 {[%emt 0:00:14]} 21. Nc3 {[%emt 0:06:44]} Qb6+ {[%emt 0:01:24]} 22. Kh1 {[%emt 0:01:30]} h5 {[%emt 0:05:08]} 23. f4 {[%emt 0:02:09]} Qb4 {[%emt 0:09:50]} 24. a3 {[%emt 0:03:28]} Qb8 {[%emt 0:00:56]} 25. Qd3 {[%emt 0:03:20]} Qb7 {[%emt 0:01:06]} 26. f5 {[%emt 0:02:49]} Bd7 {[%emt 0:00:24]} 27. b4 {[%emt 0:00:12]} Be7 {[%emt 0:01:09]} 28. Rb1 {[%emt 0:02:11]} Qa7 {[%emt 0:01:07]} 29. a4 {[%emt 0:02:18]} Bc8 {[%emt 0:04:15]} 30. b5 {[%emt 0:01:21]} cxb5 {[%emt 0:00:24]} 31. axb5 {[%emt 0:00:24]} axb5 {[%emt 0:01:29]} 32. Nxb5 {[%emt 0:00:53]} Qc5 {[%emt 0:00:23]} 33. Rfd1 {[%emt 0:01:29]} O-O {[%emt 0:00:56]} 34. Qe2 {[%emt 0:01:24]} Ba6 {[%emt 0:00:58]} 35. Rb3 {[%emt 0:00:26]} Rc8 {[%emt 0:00:42]} 36. Qxh5 {[%emt 0:01:32]} Bf8 {[%emt 0:00:30]} 37. Rg3+ {[%emt 0:00:36]} Bg7 {[%emt 0:00:08] [#]} 38. Qh6 $1 {[%emt 0:01:02]} Kf8 {[%emt 0:00:09]} 39. Qxg7+ {[%emt 0:00:15]} Ke7 {[%emt 0:00:04]} 40. Rxd6 {[%emt 0:02:36]} Qxb5 {[%emt 0:01:16]} 41. Qxf6+ {[%emt 0:00:11]} Kf8 {[%emt 0:00:38]} 42. Rd8+ {[%emt 0:00:19]} Rxd8 {[%emt 0:00:02]} 43. Qxd8+ {[%emt 0:00:06]} Qe8 {[%emt 0:00:08]} 44. Rg8+ {[%emt 0:00:43]} 1-0

[Event "ENG-ch Women 2019"]
[Site "Hull"]
[Date "2019.08.30"]
[Round "1.7"]
[White "Ball, Katie C"]
[Black "Posadas, Rayelynn"]
[Result "0-1"]
[ECO "D02"]
[WhiteElo "1472"]
[BlackElo "1885"]
[Annotator "NA RC"]
[PlyCount "94"]
[EventDate "2019.08.30"]
[EventType "swiss"]
[EventCountry "ENG"]
[SourceTitle "playchess.com"]
[Source "ChessBase"]
[SourceQuality "1"]
[TimeControl "5400+30"]

1. d4 {[%emt 0:00:00]} d5 {[%emt 0:00:00]} 2. Nf3 {[%emt 0:00:00]} Nf6 {[%emt 0:00:00]} 3. Bg5 {[%emt 0:00:07]} c6 {[%emt 0:01:18]} 4. c3 {[%emt 0:01:55]} Bf5 {[%emt 0:02:25]} 5. e3 {[%emt 0:03:20]} (5. Bxf6 exf6 6. e3 Bd6 7. Bd3 Be6 8. Qc2 g6 9. Nbd2 f5 10. c4 Nd7 11. O-O O-O 12. a3 Nf6 13. cxd5 Bxd5 14. Bc4 Re8 {½-½ (72) Ghaem Maghami,E (2554)-Vitiugov,N (2734) Khanty-Mansiysk 2013}) 5... Nbd7 {[%emt 0:02:50]} 6. Bd3 {[%emt 0:05:26] D02: 1 d4 d5 2 Nf3 sidelines, including 2...Nf6 3 g3 and 2...Nf6 3 Bf4} Ne4 {[%emt 0:00:48]} 7. Bh4 {[%emt 0:04:08]} b6 $146 {[%emt 0:09:38]} ({Predecessor:} 7... Qc7 8. O-O e6 9. Qe2 Bd6 10. Bg3 O-O 11. Bxd6 Nxd6 12. Nbd2 c5 13. Bxf5 Nxf5 {½-½ (24) Vavov,P (1736)-Pavlov,P (1652) Stara Zagora 2015}) 8. Ng5 {[%emt 0:41:22]} Ndf6 {[%emt 0:18:17]} 9. f3 {[%emt 0:08:03]} Nxg5 {[%emt 0:08:50]} (9... Nd6 $1 $11) 10. Bxf5 {[%emt 0:00:25]} Ne6 {[%emt 0:00:02]} 11. O-O {[%emt 0:04:55]} g6 {[%emt 0:00:01]} 12. Bd3 {[%emt 0:00:30]} g5 {[%emt 0:04:48]} 13. Bg3 {[%emt 0:03:03]} h5 {[%emt 0:00:20]} 14. Ba6 {[%emt 0:01:14]} Qd7 {[%emt 0:12:57]} 15. Qa4 {[%emt 0:03:32]} Bh6 {[%emt 0:02:53]} 16. Nd2 {[%emt 0:01:44]} g4 {[%emt 0:05:15]} 17. Rae1 {[%emt 0:01:05]} h4 {[%emt 0:03:42]} (17... b5 $1 $11 18. Qa5 h4) 18. Bxh4 {[%emt 0:01:36]} Bxe3+ {[%emt 0:00:03]} 19. Rxe3 {[%emt 0:00:02]} Rxh4 {[%emt 0:00:05]} 20. b4 $2 {[%emt 0:02:20]} (20. Qd1 $16) 20... Qc7 {[%emt 0:04:57]} 21. g3 {[%emt 0:02:22]} Rh3 {[%emt 0:06:33]} 22. b5 {[%emt 0:02:40] [#]} Rxg3+ $1 {[%emt 0:01:02] Demolition} 23. Kf2 {[%emt 0:07:08]} Rh3 {[%emt 0:00:59]} 24. bxc6 {[%emt 0:00:34]} gxf3 {[%emt 0:03:26]} 25. Rxf3 {[%emt 0:01:22]} Rxh2+ {[%emt 0:08:21]} 26. Ke1 {[%emt 0:00:56]} Nf8 {[%emt 0:01:43]} 27. R3f2 {[%emt 0:01:11]} Rh3 {[%emt 0:00:08]} 28. Rf3 {[%emt 0:00:19]} Rh2 {[%emt 0:00:25]} 29. R3f2 {[%emt 0:00:05]} Rxf2 {[%emt 0:00:03]} 30. Rxf2 {[%emt 0:00:02]} Rd8 {[%emt 0:00:00]} 31. a3 {[%emt 0:01:04]} Rd6 {[%emt 0:00:10]} 32. Re2 {[%emt 0:00:12]} Ng6 {[%emt 0:00:51]} 33. Nf3 {[%emt 0:00:41]} Ne4 {[%emt 0:00:24]} 34. Re3 {[%emt 0:00:58]} Kd8 {[%emt 0:00:35]} 35. Nd2 {[%emt 0:00:32]} Nxd2 {[%emt 0:00:47]} 36. Kxd2 {[%emt 0:00:01]} Rxc6 $19 {[%emt 0:00:14]} 37. Bb5 {[%emt 0:01:03]} Rf6 {[%emt 0:00:02]} 38. Qb4 {[%emt 0:01:52]} Rf2+ {[%emt 0:00:09]} 39. Kd1 {[%emt 0:00:12]} Ra2 {[%emt 0:01:36]} 40. a4 {[%emt 0:00:27]} Ra1+ {[%emt 0:00:17]} 41. Ke2 {[%emt 0:00:21]} Qh2+ {[%emt 0:00:27]} 42. Kf3 {[%emt 0:00:44]} Qh1+ {[%emt 0:00:22]} 43. Kf2 {[%emt 0:00:33]} Qg1+ {[%emt 0:00:32]} 44. Kf3 {[%emt 0:00:27]} Nh4+ {[%emt 0:00:50]} 45. Kf4 {[%emt 0:00:54]} Ng2+ {[%emt 0:00:46]} 46. Ke5 {[%emt 0:00:38]} Qxe3+ {[%emt 0:00:06]} 47. Kxd5 {[%emt 0:00:12]} Qe6# {[%emt 0:00:13]} 0-1